{"text_format":"1","workbook":"xlsx","n_sheets":6,"sheets":["Gesamtliste","Sammlung1","Sammlung2","Sammlung3","Sammlung4","Sammlung5"],"not_rendered":{"charts":0,"images":0,"macros":1,"external_links":0,"defined_names":1,"comments":0,"pivot_tables":0},"unopened":[],"bounds":{"document_bytes":16777216,"sheet_cells":100000,"rows_first":2000,"rows_last":500,"rows_between":2000,"halvings":0,"cell_chars":16384,"cell_head_chars":4096},"cells_cut":0,"cells_raw":0,"read":"whole","date_system":"1900"}

{"sheet":"Gesamtliste","index":0,"n_rows":51,"n_cols":5,"rows_kept":51,"cut":false,"hidden":false,"merged":[]}
[null,"Link","Name","Info","Sammlung"]
["Diese",{"$f":"HYPERLINK(\"#Sammlung1!C\"&ROW(),C2)","v":"Artikel 1"},"Artikel 1","neu",1]
["Spalte",{"$f":"HYPERLINK(\"#Sammlung1!C\"&ROW(),C3)","v":"Artikel 2"},"Artikel 2","altneu",1]
["soll","Artikel 3","Artikel 3","alt",1]
["nicht","Artikel 4","Artikel 4","alt",1]
["gelöscht","Artikel 5","Artikel 5","neu",1]
["werden","Artikel 6","Artikel 6","neu",1]
[null,"Artikel 7","Artikel 7","alt",1]
[null,"Artikel 8","Artikel 8","neu",1]
[null,"Artikel 9","Artikel 9","neu",1]
[null,"Artikel 10","Artikel 10","neu",1]
[null,{"$f":"HYPERLINK(\"#Sammlung2!C\"&ROW(),C12)","v":"Artikel 1"},"Artikel 1","neu",2]
[null,{"$f":"HYPERLINK(\"#Sammlung2!C\"&ROW(),C13)","v":"Artikel 2"},"Artikel 2","alt",2]
[null,"Artikel 3","Artikel 3","alt",2]
[null,"Artikel 4","Artikel 4","alt",2]
[null,"Artikel 5","Artikel 5","neu",2]
[null,"Artikel 6","Artikel 6","neu",2]
[null,"Artikel 7","Artikel 7","alt",2]
[null,"Artikel 8","Artikel 8","neu",2]
[null,"Artikel 9","Artikel 9","neu",2]
[null,"Artikel 10","Artikel 10","neu",2]
[null,21,"Artikel 1","neu",3]
[null,22,"Artikel 2","alt",3]
[null,23,"Artikel 3","alt",3]
[null,24,"Artikel 4","alt",3]
[null,25,"Artikel 5","neu",3]
[null,26,"Artikel 6","neu",3]
[null,27,"Artikel 7","alt",3]
[null,28,"Artikel 8","neu",3]
[null,29,"Artikel 9","neu",3]
[null,30,"Artikel 10","neu",3]
[null,31,"Artikel 1","neu",4]
[null,32,"Artikel 2","alt",4]
[null,33,"Artikel 3","alt",4]
[null,34,"Artikel 4","alt",4]
[null,35,"Artikel 5","neu",4]
[null,36,"Artikel 6","neu",4]
[null,37,"Artikel 7","alt",4]
[null,38,"Artikel 8","neu",4]
[null,39,"Artikel 9","neu",4]
[null,40,"Artikel 10","neu",4]
[null,41,"Artikel 1","neu",5]
[null,42,"Artikel 2","alt",5]
[null,43,"Artikel 3","alt",5]
[null,44,"Artikel 4","alt",5]
[null,45,"Artikel 5","neu",5]
[null,46,"Artikel 6","neu",5]
[null,47,"Artikel 7","alt",5]
[null,48,"Artikel 8","neu",5]
[null,49,"Artikel 9","neu",5]
[null,50,"Artikel 10","neu",5]

{"sheet":"Sammlung1","index":1,"n_rows":11,"n_cols":5,"rows_kept":11,"cut":false,"hidden":false,"merged":[]}
[null,null,"Artikel","Info","Sammlung"]
[null,{"$f":"HYPERLINK(\"#Sammlung1!C\"&ROW(),C2)","v":"Artikel 1"},"Artikel 1","neu",1]
[null,{"$f":"HYPERLINK(\"#Sammlung1!C\"&ROW(),C3)","v":"Artikel 2"},"Artikel 2","altneu",1]
[null,"Artikel 3","Artikel 3","alt",1]
[null,"Artikel 4","Artikel 4","alt",1]
[null,"Artikel 5","Artikel 5","neu",1]
[null,"Artikel 6","Artikel 6","neu",1]
[null,"Artikel 7","Artikel 7","alt",1]
[null,"Artikel 8","Artikel 8","neu",1]
[null,"Artikel 9","Artikel 9","neu",1]
[null,"Artikel 10","Artikel 10","neu",1]

{"sheet":"Sammlung2","index":2,"n_rows":11,"n_cols":5,"rows_kept":11,"cut":false,"hidden":false,"merged":[]}
[null,null,"Artikel","Info","Sammlung"]
[null,{"$f":"HYPERLINK(\"#Sammlung2!C\"&ROW(),C2)","v":"Artikel 1"},"Artikel 1","neu",2]
[null,{"$f":"HYPERLINK(\"#Sammlung2!C\"&ROW(),C3)","v":"Artikel 2"},"Artikel 2","alt",2]
[null,"Artikel 3","Artikel 3","alt",2]
[null,"Artikel 4","Artikel 4","alt",2]
[null,"Artikel 5","Artikel 5","neu",2]
[null,"Artikel 6","Artikel 6","neu",2]
[null,"Artikel 7","Artikel 7","alt",2]
[null,"Artikel 8","Artikel 8","neu",2]
[null,"Artikel 9","Artikel 9","neu",2]
[null,"Artikel 10","Artikel 10","neu",2]

{"sheet":"Sammlung3","index":3,"n_rows":11,"n_cols":5,"rows_kept":11,"cut":false,"hidden":false,"merged":[]}
[null,null,"Artikel","Info","Sammlung"]
[null,21,"Artikel 1","neu",3]
[null,22,"Artikel 2","alt",3]
[null,23,"Artikel 3","alt",3]
[null,24,"Artikel 4","alt",3]
[null,25,"Artikel 5","neu",3]
[null,26,"Artikel 6","neu",3]
[null,27,"Artikel 7","alt",3]
[null,28,"Artikel 8","neu",3]
[null,29,"Artikel 9","neu",3]
[null,30,"Artikel 10","neu",3]

{"sheet":"Sammlung4","index":4,"n_rows":11,"n_cols":5,"rows_kept":11,"cut":false,"hidden":false,"merged":[]}
[null,null,"Artikel","Info","Sammlung"]
[null,31,"Artikel 1","neu",4]
[null,32,"Artikel 2","alt",4]
[null,33,"Artikel 3","alt",4]
[null,34,"Artikel 4","alt",4]
[null,35,"Artikel 5","neu",4]
[null,36,"Artikel 6","neu",4]
[null,37,"Artikel 7","alt",4]
[null,38,"Artikel 8","neu",4]
[null,39,"Artikel 9","neu",4]
[null,40,"Artikel 10","neu",4]

{"sheet":"Sammlung5","index":5,"n_rows":11,"n_cols":5,"rows_kept":11,"cut":false,"hidden":false,"merged":[]}
[null,null,"Artikel","Info","Sammlung"]
[null,41,"Artikel 1","neu",5]
[null,42,"Artikel 2","alt",5]
[null,43,"Artikel 3","alt",5]
[null,44,"Artikel 4","alt",5]
[null,45,"Artikel 5","neu",5]
[null,46,"Artikel 6","neu",5]
[null,47,"Artikel 7","alt",5]
[null,48,"Artikel 8","neu",5]
[null,49,"Artikel 9","neu",5]
[null,50,"Artikel 10","neu",5]